{"text_format":"1","workbook":"xlsx","n_sheets":7,"sheets":["January","February","March","April","May","June","YTD totals"],"not_rendered":{"charts":0,"images":1,"macros":1,"external_links":0,"defined_names":0,"comments":0,"pivot_tables":0},"unopened":[],"bounds":{"document_bytes":16777216,"sheet_cells":100000,"rows_first":2000,"rows_last":500,"rows_between":2000,"halvings":0,"cell_chars":16384,"cell_head_chars":4096},"cells_cut":0,"cells_raw":0,"read":"whole","date_system":"1900"}

{"sheet":"January","index":0,"n_rows":69,"n_cols":3,"rows_kept":69,"cut":false,"hidden":false,"merged":[]}
["Perinatal Data Reporting Form"]
["January 2019"]
["Please submit monthly data to PerinatalData@setrac.org"]
["Do not fill in areas that are in gray (these will be automatically populated.)"]
["Enter \"0\" if there is no data for a field"]
[]
["1",null,"Length of stay"]
["a",{"$f":"IFERROR(B9/B10,0)","v":0},"VLBW"]
[null,null,"Total days in the hospital for all VLBW neonates inborn between 500-1500 grams in defined time period"]
[null,null,"Total number of patients 500-1500 grams born in your hospital during defined time period"]
["b",{"$f":"IFERROR(B12/B13,0)","v":0},"Late Preterm Infants (LPI)"]
[null,null,"Total days in the hospital for all neonates inborn between 34 and 36.6 gestation in defined time period"]
[null,null,"Total number of patients between 34 weeks and 36.6 weeks gestational age born in your hospital and admitted to NICU during defined time period"]
[]
["2",{"$f":"IFERROR(B16/B17,0)","v":0},"Percentage of all NICU babies discharged on ANY breastmilk (multiply by 100)"]
[null,null,"Number of babies on ANY breastmilk at discharge"]
[null,null,"Total number of NICU discharges in defined time period"]
[]
["3",{"$f":"IFERROR(B20/B21,0)","v":0},"Percentage of VLBW babies discharged on ANY breastmilk (multiply by 100)"]
[null,null,"Number of VLBW babies on ANY breastmilk at discharge"]
[null,null,"Total number of VLBW babies discharged from NICU in defined time period "]
[]
["4",{"$f":"IFERROR(B24/B25,0)","v":0},"Percentage of babies < 33 weeks at birth admitted to NICU with temp <36.5 degrees (hypothermia)\n(multiply by 100)"]
[null,null,"Number with admit temp <36.5 (1st temp on admit, <1 hr from birth)"]
[null,null,"Total number of babies < 33 weeks born in your hospital during defined time period"]
[]
["5",{"$f":"IFERROR(B28/B29,0)","v":0},"Percentage of infection reporting --> positive neonatal bloodstream infections (multiply by 100)"]
[null,null,"Positive first unique bacterial infection from blood"]
[null,null,"Total number of level 2, 3, or 4 babies newly admitted to your NICU in defined time period"]
[]
["6",{"$f":"IFERROR(B32/B33,0)","v":0},"Percentage of admission antibiotics DOL 0-7 – order to drug initiation > 1 hour (multiply by 100)"]
[null,null,"Number of babies who received antibiotics in >60 minutes after order written"]
[null,null,"Total number of level 2,3, or 4 babies receiving initial empiric antibiotics in DOL 0-7 admited to your NICU during the defined time period"]
[]
["7",{"$f":"IFERROR(B36/B37,0)","v":0},"Percentage of babies receiving ANY cephalosporins for initial empiric antibiotic therapy in DOL 0-7 (multiply by 100)"]
[null,null,"Number of babies receiving cephalosporins in first 7 days of life in defined time period"]
[null,{"$f":"SUM(B29)","v":0},"Total number of level 2,3, or 4 babies receiving initial empiric antibiotics in DOL 0-7 admitted to your NICU during the defined time period"]
[]
["8",null,"Mortality:"]
["a",{"$f":"IFERROR(B41/B42,0)","v":0},"Percentage of total NICU Mortality (multiply by 100)"]
[null,null,"Total number of NICU patient deaths"]
[null,{"$f":"SUM(B29)","v":0},"Total number of level 2,3, or 4 babies admitted to your NICU during defined time period"]
["b",{"$f":"(B46+B49)/2","v":0},"Percentage of VLBW Total Mortality (multiply by 100)"]
[null,null,"Total number of VLBW deaths"]
[null,{"$f":"B48+B51","v":0},"Total number of VLBW neonates admitted to your NICU during defined time period"]
["c",{"$f":"IFERROR(B47/B48,0)","v":0},"Percentage of VLBW Inborn Mortality (multiply by 100)"]
[null,null,"Inborn VLBW patient deaths"]
[null,null,"Total number of VLBW neonates born in your hospital during defined time period"]
["d",{"$f":"IFERROR(B50/B51,0)","v":0},"Percentage of VLBW Outborn Mortality (multiply by 100)"]
[null,null,"Outborn VLBW patient deaths"]
[null,null,"Total number of outborn VLBW neonates transferred into and admitted by center in defined time period"]
[]
["9",{"$f":"IFERROR(B54/B55,0)","v":0},"Mean Ventilator Days (VLBW)"]
[null,null,"Total inborn VLBW patient ventilator days"]
[null,null,"Total number of VLBW patients born in your hospital during defined time period"]
[]
["10",null,"Antenatal Steroid Administration"]
["a",{"$f":"IFERROR(B59/B60,0)","v":0},"Percentage of inborn VLBW neonates receiving antenatal steroids (multiply by 100)"]
[null,null,"Number of neonates receiving steroids prior to delivery in VLBW neonates born in your hospital during defined time period"]
[null,null,"Number of VLBW neonates born in your hospital during defined time period"]
["b",{"$f":"IFERROR(B62/B63,0)","v":0},"Percentage of inborn late preterm neonates receiving antenatal steroids (multiply by 100)"]
[null,null,"Number of neonates receiving steroids prior to delivery in 34-36.6 week delivered neonates born in your hospital during defined time period"]
[null,null,"Total number of 34-36.6 neonates born in your hospital during defined time period"]
[]
["11",null,"VLBW Transfer Data"]
["a",null,"Number of transferred in / outborn VLBW neonates in a defined time period"]
["b",null,"Number of transferred out VLBW neonates in a defined time period"]
[]
["Version - 7.15.19"]

{"sheet":"February","index":1,"n_rows":69,"n_cols":3,"rows_kept":69,"cut":false,"hidden":false,"merged":[]}
["Perinatal Data Reporting Form"]
["February 2019"]
["Please submit monthly data to PerinatalData@setrac.org"]
["Do not fill in areas that are in gray (these will be automatically populated.)"]
["Enter \"0\" if there is no data for a field"]
[]
["1",null,"Length of stay"]
["a",{"$f":"IFERROR(B9/B10,0)","v":0},"VLBW"]
[null,null,"Total days in the hospital for all VLBW neonates inborn between 500-1500 grams in defined time period"]
[null,null,"Total number of patients 500-1500 grams born in your hospital during defined time period"]
["b",{"$f":"IFERROR(B12/B13,0)","v":0},"Late Preterm Infants (LPI)"]
[null,null,"Total days in the hospital for all neonates inborn between 34 and 36.6 gestation in defined time period"]
[null,null,"Total number of patients between 34 weeks and 36.6 weeks gestational age born in your hospital and admitted to NICU during defined time period"]
[]
["2",{"$f":"IFERROR(B16/B17,0)","v":0},"Percentage of all NICU babies discharged on ANY breastmilk (multiply by 100)"]
[null,null,"Number of babies on ANY breastmilk at discharge"]
[null,null,"Total number of NICU discharges in defined time period"]
[]
["3",{"$f":"IFERROR(B20/B21,0)","v":0},"Percentage of VLBW babies discharged on ANY breastmilk (multiply by 100)"]
[null,null,"Number of VLBW babies on ANY breastmilk at discharge"]
[null,null,"Total number of VLBW babies discharged from NICU in defined time period "]
[]
["4",{"$f":"IFERROR(B24/B25,0)","v":0},"Percentage of babies < 33 weeks at birth admitted to NICU with temp <36.5 degrees (hypothermia)\n(multiply by 100)"]
[null,null,"Number with admit temp <36.5 (1st temp on admit, <1 hr from birth)"]
[null,null,"Total number of babies < 33 weeks born in your hospital during defined time period"]
[]
["5",{"$f":"IFERROR(B28/B29,0)","v":0},"Percentage of infection reporting --> positive neonatal bloodstream infections (multiply by 100)"]
[null,null,"Positive first unique bacterial infection from blood"]
[null,null,"Total number of level 2, 3, or 4 babies newly admitted to your NICU in defined time period"]
[]
["6",{"$f":"IFERROR(B32/B33,0)","v":0},"Percentage of admission antibiotics DOL 0-7 – order to drug initiation > 1 hour (multiply by 100)"]
[null,null,"Number of babies who received antibiotics in >60 minutes after order written"]
[null,null,"Total number of level 2,3, or 4 babies receiving initial empiric antibiotics in DOL 0-7 admitted to your NICU during the defined time period"]
[]
["7",{"$f":"IFERROR(B36/B37,0)","v":0},"Percentage of babies receiving ANY cephalosporins for initial empiric antibiotic therapy in DOL 0-7 (multiply by 100)"]
[null,null,"Number of babies receiving cephalosporins in first 7 days of life in defined time period"]
[null,{"$f":"SUM(B29)","v":0},"Total number of level 2,3, or 4 babies receiving initial empiric antibiotics in DOL 0-7 admited to your NICU during the defined time period"]
[]
["8",null,"Mortality:"]
["a",{"$f":"IFERROR(B41/B42,0)","v":0},"Percentage of total NICU Mortality (multiply by 100)"]
[null,null,"Total number of NICU patient deaths"]
[null,{"$f":"SUM(B29)","v":0},"Total number of level 2,3, or 4 babies admitted to your NICU during defined time period"]
["b",{"$f":"(B46+B49)/2","v":0},"Percentage of VLBW Total Mortality (multiply by 100)"]
[null,{"$f":"B47+B50","v":0},"Total number of VLBW deaths"]
[null,{"$f":"B48+B51","v":0},"Total number of VLBW neonates admitted to your NICU during defined time period"]
["c",{"$f":"IFERROR(B47/B48,0)","v":0},"Percentage of VLBW Inborn Mortality (multiply by 100)"]
[null,null,"Inborn VLBW patient deaths"]
[null,null,"Total number of VLBW neonates born in your hospital during defined time period"]
["d",{"$f":"IFERROR(B50/B51,0)","v":0},"Percentage of VLBW Outborn Mortality (multiply by 100)"]
[null,null,"Outborn VLBW patient deaths"]
[null,null,"Total number of outborn VLBW neonates transferred into and admitted by center in defined time period"]
[]
["9",{"$f":"IFERROR(B54/B55,0)","v":0},"Mean Ventilator Days (VLBW)"]
[null,null,"Total inborn VLBW patient ventilator days"]
[null,null,"Total number of VLBW patients born in your hospital during defined time period"]
[]
["10",null,"Antenatal Steroid Administration"]
["a",{"$f":"IFERROR(B59/B60,0)","v":0},"Percentage of inborn VLBW neonates receiving antenatal steroids (multiply by 100)"]
[null,null,"Number of neonates receiving steroids prior to delivery in VLBW neonates born in your hospital during defined time period"]
[null,null,"Number of VLBW neonates born in your hospital during defined time period"]
["b",{"$f":"IFERROR(B62/B63,0)","v":0},"Percentage of inborn late preterm neonates receiving antenatal steroids (multiply by 100)"]
[null,null,"Number of neonates receiving steroids prior to delivery in 34-36.6 week delivered neonates born in your hospital during defined time period"]
[null,null,"Total number of 34-36.6 neonates born in your hospital during defined time period"]
[]
["11",null,"VLBW Transfer Data"]
["a",null,"Number of transferred in / outborn VLBW neonates in a defined time period"]
["b",null,"Number of transferred out VLBW neonates in a defined time period"]
[]
["Version - 7.15.19"]

{"sheet":"March","index":2,"n_rows":69,"n_cols":3,"rows_kept":69,"cut":false,"hidden":false,"merged":[]}
["Perinatal Data Reporting Form"]
["March 2019"]
["Please submit monthly data to PerinatalData@setrac.org"]
["Do not fill in areas that are in gray (these will be automatically populated.)"]
["Enter \"0\" if there is no data for a field"]
[]
["1",null,"Length of stay"]
["a",{"$f":"IFERROR(B9/B10,0)","v":0},"VLBW"]
[null,null,"Total days in the hospital for all VLBW neonates inborn between 500-1500 grams in defined time period"]
[null,null,"Total number of patients 500-1500 grams born in your hospital during defined time period"]
["b",{"$f":"IFERROR(B12/B13,0)","v":0},"Late Preterm Infants (LPI)"]
[null,null,"Total days in the hospital for all neonates inborn between 34 and 36.6 gestation in defined time period"]
[null,null,"Total number of patients between 34 weeks and 36.6 weeks gestational age born in your hospital and admitted to NICU during defined time period"]
[]
["2",{"$f":"IFERROR(B16/B17,0)","v":0},"Percentage of all NICU babies discharged on ANY breastmilk (multiply by 100)"]
[null,null,"Number of babies on ANY breastmilk at discharge"]
[null,null,"Total number of NICU discharges in defined time period"]
[]
["3",{"$f":"IFERROR(B20/B21,0)","v":0},"Percentage of VLBW babies discharged on ANY breastmilk (multiply by 100)"]
[null,null,"Number of VLBW babies on ANY breastmilk at discharge"]
[null,null,"Total number of VLBW babies discharged from NICU in defined time period "]
[]
["4",{"$f":"IFERROR(B24/B25,0)","v":0},"Percentage of babies < 33 weeks at birth admitted to NICU with temp <36.5 degrees (hypothermia)\n(multiply by 100)"]
[null,null,"Number with admit temp <36.5 (1st temp on admit, <1 hr from birth)"]
[null,null,"Total number of babies < 33 weeks born in your hospital during defined time period"]
[]
["5",{"$f":"IFERROR(B28/B29,0)","v":0},"Percentage of infection reporting --> positive neonatal bloodstream infections (multiply by 100)"]
[null,null,"Positive first unique bacterial infection from blood"]
[null,null,"Total number of level 2, 3, or 4 babies newly admitted to your NICU in defined time period"]
[]
["6",{"$f":"IFERROR(B32/B33,0)","v":0},"Percentage of admission antibiotics DOL 0-7 – order to drug initiation > 1 hour (multiply by 100)"]
[null,null,"Number of babies who received antibiotics in >60 minutes after order written"]
[null,null,"Total number of level 2,3, or 4 babies receiving initial empiric antibiotics in DOL 0-7 admited to your NICU during the defined time period"]
[]
["7",{"$f":"IFERROR(B36/B37,0)","v":0},"Percentage of babies receiving ANY cephalosporins for initial empiric antibiotic therapy in DOL 0-7 (multiply by 100)"]
[null,null,"Number of babies receiving cephalosporins in first 7 days of life in defined time period"]
[null,{"$f":"SUM(B29)","v":0},"Total number of level 2,3, or 4 babies receiving initial empiric antibiotics in DOL 0-7 admitted to your NICU during the defined time period"]
[]
["8",null,"Mortality:"]
["a",{"$f":"IFERROR(B41/B42,0)","v":0},"Percentage of total NICU Mortality (multiply by 100)"]
[null,{"$f":"B47+B50","v":0},"Total number of NICU patient deaths"]
[null,{"$f":"SUM(B29)","v":0},"Total number of level 2,3, or 4 babies admitted to your NICU during defined time period"]
["b",{"$f":"(B46+B49)/2","v":0},"Percentage of VLBW Total Mortality (multiply by 100)"]
[null,{"$f":"B47+B50","v":0},"Total number of VLBW deaths"]
[null,{"$f":"B48+B51","v":0},"Total number of VLBW neonates admitted to your NICU during defined time period"]
["c",{"$f":"IFERROR(B47/B48,0)","v":0},"Percentage of VLBW Inborn Mortality (multiply by 100)"]
[null,null,"Inborn VLBW patient deaths"]
[null,null,"Total number of VLBW neonates born in your hospital during defined time period"]
["d",{"$f":"IFERROR(B50/B51,0)","v":0},"Percentage of VLBW Outborn Mortality (multiply by 100)"]
[null,null,"Outborn VLBW patient deaths"]
[null,null,"Total number of outborn VLBW neonates transferred into and admitted by center in defined time period"]
[]
["9",{"$f":"IFERROR(B54/B55,0)","v":0},"Mean Ventilator Days (VLBW)"]
[null,null,"Total inborn VLBW patient ventilator days"]
[null,null,"Total number of VLBW patients born in your hospital during defined time period"]
[]
["10",null,"Antenatal Steroid Administration"]
["a",{"$f":"IFERROR(B59/B60,0)","v":0},"Percentage of inborn VLBW neonates receiving antenatal steroids (multiply by 100)"]
[null,null,"Number of neonates receiving steroids prior to delivery in VLBW neonates born in your hospital during defined time period"]
[null,null,"Number of VLBW neonates born in your hospital during defined time period"]
["b",{"$f":"IFERROR(B62/B63,0)","v":0},"Percentage of inborn late preterm neonates receiving antenatal steroids (multiply by 100)"]
[null,null,"Number of neonates receiving steroids prior to delivery in 34-36.6 week delivered neonates born in your hospital during defined time period"]
[null,null,"Total number of 34-36.6 neonates born in your hospital during defined time period"]
[]
["11",null,"VLBW Transfer Data"]
["a",null,"Number of transferred in / outborn VLBW neonates in a defined time period"]
["b",null,"Number of transferred out VLBW neonates in a defined time period"]
[]
["Version - 7.15.19"]

{"sheet":"April","index":3,"n_rows":69,"n_cols":3,"rows_kept":69,"cut":false,"hidden":false,"merged":[]}
["Perinatal Data Reporting Form"]
["April 2019"]
["Please submit monthly data to PerinatalData@setrac.org"]
["Do not fill in areas that are in gray (these will be automatically populated.)"]
["Enter \"0\" if there is no data for a field"]
[]
["1",null,"Length of stay"]
["a",{"$f":"IFERROR(B9/B10,0)","v":0},"VLBW"]
[null,null,"Total days in the hospital for all VLBW neonates inborn between 500-1500 grams in defined time period"]
[null,null,"Total number of patients 500-1500 grams born in your hospital during defined time period"]
["b",{"$f":"IFERROR(B12/B13,0)","v":0},"Late Preterm Infants (LPI)"]
[null,null,"Total days in the hospital for all neonates inborn between 34 and 36.6 gestation in defined time period"]
[null,null,"Total number of patients between 34 weeks and 36.6 weeks gestational age born in your hospital and admitted to NICU during defined time period"]
[]
["2",{"$f":"IFERROR(B16/B17,0)","v":0},"Percentage of all NICU babies discharged on ANY breastmilk (multiply by 100)"]
[null,null,"Number of babies on ANY breastmilk at discharge"]
[null,null,"Total number of NICU discharges in defined time period"]
[]
["3",{"$f":"IFERROR(B20/B21,0)","v":0},"Percentage of VLBW babies discharged on ANY breastmilk (multiply by 100)"]
[null,null,"Number of VLBW babies on ANY breastmilk at discharge"]
[null,null,"Total number of VLBW babies discharged from NICU in defined time period "]
[]
["4",{"$f":"IFERROR(B24/B25,0)","v":0},"Percentage of babies < 33 weeks at birth admitted to NICU with temp <36.5 degrees (hypothermia)\n(multiply by 100)"]
[null,null,"Number with admit temp <36.5 (1st temp on admit, <1 hr from birth)"]
[null,null,"Total number of babies < 33 weeks born in your hospital during defined time period"]
[]
["5",{"$f":"IFERROR(B28/B29,0)","v":0},"Percentage of infection reporting --> positive neonatal bloodstream infections (multiply by 100)"]
[null,null,"Positive first unique bacterial infection from blood"]
[null,null,"Total number of level 2, 3, or 4 babies newly admitted to your NICU in defined time period"]
[]
["6",{"$f":"IFERROR(B32/B33,0)","v":0},"Percentage of admission antibiotics DOL 0-7 – order to drug initiation > 1 hour (multiply by 100)"]
[null,null,"Number of babies who received antibiotics in >60 minutes after order written"]
[null,null,"Total number of level 2,3, or 4 babies receiving initial empiric antibiotics in DOL 0-7 admitted to your NICU during the defined time period"]
[]
["7",{"$f":"IFERROR(B36/B37,0)","v":0},"Percentage of babies receiving ANY cephalosporins for initial empiric antibiotic therapy in DOL 0-7 (multiply by 100)"]
[null,null,"Number of babies receiving cephalosporins in first 7 days of life in defined time period"]
[null,{"$f":"SUM(B29)","v":0},"Total number of level 2,3, or 4 babies receiving initial empiric antibiotics in DOL 0-7 admited to your NICU during the defined time period"]
[]
["8",null,"Mortality:"]
["a",{"$f":"IFERROR(B41/B42,0)","v":0},"Percentage of total NICU Mortality (multiply by 100)"]
[null,{"$f":"B47+B50","v":0},"Total number of NICU patient deaths"]
[null,{"$f":"SUM(B29)","v":0},"Total number of level 2,3, or 4 babies admitted to your NICU during defined time period"]
["b",{"$f":"(B46+B49)/2","v":0},"Percentage of VLBW Total Mortality (multiply by 100)"]
[null,{"$f":"B47+B50","v":0},"Total number of VLBW deaths"]
[null,{"$f":"B48+B51","v":0},"Total number of VLBW neonates admitted to your NICU during defined time period"]
["c",{"$f":"IFERROR(B47/B48,0)","v":0},"Percentage of VLBW Inborn Mortality (multiply by 100)"]
[null,null,"Inborn VLBW patient deaths"]
[null,null,"Total number of VLBW neonates born in your hospital during defined time period"]
["d",{"$f":"IFERROR(B50/B51,0)","v":0},"Percentage of VLBW Outborn Mortality (multiply by 100)"]
[null,null,"Outborn VLBW patient deaths"]
[null,null,"Total number of outborn VLBW neonates transferred into and admitted by center in defined time period"]
[]
["9",{"$f":"IFERROR(B54/B55,0)","v":0},"Mean Ventilator Days (VLBW)"]
[null,null,"Total inborn VLBW patient ventilator days"]
[null,{"$f":"SUM(B48)","v":0},"Total number of VLBW patients born in your hospital during defined time period"]
[]
["10",null,"Antenatal Steroid Administration"]
["a",{"$f":"IFERROR(B59/B60,0)","v":0},"Percentage of inborn VLBW neonates receiving antenatal steroids (multiply by 100)"]
[null,null,"Number of neonates receiving steroids prior to delivery in VLBW neonates born in your hospital during defined time period"]
[null,{"$f":"SUM(B48)","v":0},"Number of VLBW neonates born in your hospital during defined time period"]
["b",{"$f":"IFERROR(B62/B63,0)","v":0},"Percentage of inborn late preterm neonates receiving antenatal steroids (multiply by 100)"]
[null,null,"Number of neonates receiving steroids prior to delivery in 34-36.6 week delivered neonates born in your hospital during defined time period"]
[null,null,"Total number of 34-36.6 neonates born in your hospital during defined time period"]
[]
["11",null,"VLBW Transfer Data"]
["a",null,"Number of transferred in / outborn VLBW neonates in a defined time period"]
["b",null,"Number of transferred out VLBW neonates in a defined time period"]
[]
["Version - 7.15.19"]

{"sheet":"May","index":4,"n_rows":69,"n_cols":3,"rows_kept":69,"cut":false,"hidden":false,"merged":[]}
["Perinatal Data Reporting Form"]
["May 2019"]
["Please submit monthly data to PerinatalData@setrac.org"]
["Do not fill in areas that are in gray (these will be automatically populated.)"]
["Enter \"0\" if there is no data for a field"]
[]
["1",null,"Length of stay"]
["a",{"$f":"IFERROR(B9/B10,0)","v":0},"VLBW"]
[null,null,"Total days in the hospital for all VLBW neonates inborn between 500-1500 grams in defined time period"]
[null,null,"Total number of patients 500-1500 grams born in your hospital during defined time period"]
["b",{"$f":"IFERROR(B12/B13,0)","v":0},"Late Preterm Infants (LPI)"]
[null,null,"Total days in the hospital for all neonates inborn between 34 and 36.6 gestation in defined time period"]
[null,null,"Total number of patients between 34 weeks and 36.6 weeks gestational age born in your hospital and admitted to NICU during defined time period"]
[]
["2",{"$f":"IFERROR(B16/B17,0)","v":0},"Percentage of all NICU babies discharged on ANY breastmilk (multiply by 100)"]
[null,null,"Number of babies on ANY breastmilk at discharge"]
[null,null,"Total number of NICU discharges in defined time period"]
[]
["3",{"$f":"IFERROR(B20/B21,0)","v":0},"Percentage of VLBW babies discharged on ANY breastmilk (multiply by 100)"]
[null,null,"Number of VLBW babies on ANY breastmilk at discharge"]
[null,null,"Total number of VLBW babies discharged from NICU in defined time period "]
[]
["4",{"$f":"IFERROR(B24/B25,0)","v":0},"Percentage of babies < 33 weeks at birth admitted to NICU with temp <36.5 degrees (hypothermia)\n(multiply by 100)"]
[null,null,"Number with admit temp <36.5 (1st temp on admit, <1 hr from birth)"]
[null,null,"Total number of babies < 33 weeks born in your hospital during defined time period"]
[]
["5",{"$f":"IFERROR(B28/B29,0)","v":0},"Percentage of infection reporting --> positive neonatal bloodstream infections (multiply by 100)"]
[null,null,"Positive first unique bacterial infection from blood"]
[null,null,"Total number of level 2, 3, or 4 babies newly admitted to your NICU in defined time period"]
[]
["6",{"$f":"IFERROR(B32/B33,0)","v":0},"Percentage of admission antibiotics DOL 0-7 – order to drug initiation > 1 hour (multiply by 100)"]
[null,null,"Number of babies who received antibiotics in >60 minutes after order written"]
[null,null,"Total number of level 2,3, or 4 babies receiving initial empiric antibiotics in DOL 0-7 admitted to your NICU during the defined time period"]
[]
["7",{"$f":"IFERROR(B36/B37,0)","v":0},"Percentage of babies receiving ANY cephalosporins for initial empiric antibiotic therapy in DOL 0-7 (multiply by 100)"]
[null,null,"Number of babies receiving cephalosporins in first 7 days of life in defined time period"]
[null,{"$f":"SUM(B29)","v":0},"Total number of level 2,3, or 4 babies receiving initial empiric antibiotics in DOL 0-7 admited to your NICU during the defined time period"]
[]
["8",null,"Mortality:"]
["a",{"$f":"IFERROR(B41/B42,0)","v":0},"Percentage of total NICU Mortality (multiply by 100)"]
[null,null,"Total number of NICU patient deaths"]
[null,{"$f":"SUM(B29)","v":0},"Total number of level 2,3, or 4 babies admitted to your NICU during defined time period"]
["b",{"$f":"(B46+B49)/2","v":0},"Percentage of VLBW Total Mortality (multiply by 100)"]
[null,{"$f":"B47+B50","v":0},"Total number of VLBW deaths"]
[null,{"$f":"B48+B51","v":0},"Total number of VLBW neonates admitted to your NICU during defined time period"]
["c",{"$f":"IFERROR(B47/B48,0)","v":0},"Percentage of VLBW Inborn Mortality (multiply by 100)"]
[null,null,"Inborn VLBW patient deaths"]
[null,null,"Total number of VLBW neonates born in your hospital during defined time period"]
["d",{"$f":"IFERROR(B50/B51,0)","v":0},"Percentage of VLBW Outborn Mortality (multiply by 100)"]
[null,null,"Outborn VLBW patient deaths"]
[null,null,"Total number of outborn VLBW neonates transferred into and admitted by center in defined time period"]
[]
["9",{"$f":"IFERROR(B54/B55,0)","v":0},"Mean Ventilator Days (VLBW)"]
[null,null,"Total inborn VLBW patient ventilator days"]
[null,null,"Total number of VLBW patients born in your hospital during defined time period"]
[]
["10",null,"Antenatal Steroid Administration"]
["a",{"$f":"IFERROR(B59/B60,0)","v":0},"Percentage of inborn VLBW neonates receiving antenatal steroids (multiply by 100)"]
[null,null,"Number of neonates receiving steroids prior to delivery in VLBW neonates born in your hospital during defined time period"]
[null,null,"Number of VLBW neonates born in your hospital during defined time period"]
["b",{"$f":"IFERROR(B62/B63,0)","v":0},"Percentage of inborn late preterm neonates receiving antenatal steroids (multiply by 100)"]
[null,null,"Number of neonates receiving steroids prior to delivery in 34-36.6 week delivered neonates born in your hospital during defined time period"]
[null,null,"Total number of 34-36.6 neonates born in your hospital during defined time period"]
[]
["11",null,"VLBW Transfer Data"]
["a",null,"Number of transferred in / outborn VLBW neonates in a defined time period"]
["b",null,"Number of transferred out VLBW neonates in a defined time period"]
[]
["Version - 7.15.19"]

{"sheet":"June","index":5,"n_rows":69,"n_cols":3,"rows_kept":69,"cut":false,"hidden":false,"merged":[]}
["Perinatal Data Reporting Form"]
["June 2019"]
["Please submit monthly data to PerinatalData@setrac.org"]
["Do not fill in areas that are in gray (these will be automatically populated.)"]
["Enter \"0\" if there is no data for a field"]
[]
["1",null,"Length of stay"]
["a",{"$f":"IFERROR(B9/B10,0)","v":0},"VLBW"]
[null,null,"Total days in the hospital for all VLBW neonates inborn between 500-1500 grams in defined time period"]
[null,null,"Total number of patients 500-1500 grams born in your hospital during defined time period"]
["b",{"$f":"IFERROR(B12/B13,0)","v":0},"Late Preterm Infants (LPI)"]
[null,null,"Total days in the hospital for all neonates inborn between 34 and 36.6 gestation in defined time period"]
[null,null,"Total number of patients between 34 weeks and 36.6 weeks gestational age born in your hospital and admitted to NICU during defined time period"]
[]
["2",{"$f":"IFERROR(B16/B17,0)","v":0},"Percentage of all NICU babies discharged on ANY breastmilk (multiply by 100)"]
[null,null,"Number of babies on ANY breastmilk at discharge"]
[null,null,"Total number of NICU discharges in defined time period"]
[]
["3",{"$f":"IFERROR(B20/B21,0)","v":0},"Percentage of VLBW babies discharged on ANY breastmilk (multiply by 100)"]
[null,null,"Number of VLBW babies on ANY breastmilk at discharge"]
[null,null,"Total number of VLBW babies discharged from NICU in defined time period "]
[]
["4",{"$f":"IFERROR(B24/B25,0)","v":0},"Percentage of babies < 33 weeks at birth admitted to NICU with temp <36.5 degrees (hypothermia)\n(multiply by 100)"]
[null,null,"Number with admit temp <36.5 (1st temp on admit, <1 hr from birth)"]
[null,null,"Total number of babies < 33 weeks born in your hospital during defined time period"]
[]
["5",{"$f":"IFERROR(B28/B29,0)","v":0},"Percentage of infection reporting --> positive neonatal bloodstream infections (multiply by 100)"]
[null,null,"Positive first unique bacterial infection from blood"]
[null,null,"Total number of level 2, 3, or 4 babies newly admitted to your NICU in defined time period"]
[]
["6",{"$f":"IFERROR(B32/B33,0)","v":0},"Percentage of admission antibiotics DOL 0-7 – order to drug initiation > 1 hour (multiply by 100)"]
[null,null,"Number of babies who received antibiotics in >60 minutes after order written"]
[null,null,"Total number of level 2,3, or 4 babies receiving initial empiric antibiotics in DOL 0-7 admitted to your NICU during the defined time period"]
[]
["7",{"$f":"IFERROR(B36/B37,0)","v":0},"Percentage of babies receiving ANY cephalosporins for initial empiric antibiotic therapy in DOL 0-7 (multiply by 100)"]
[null,null,"Number of babies receiving cephalosporins in first 7 days of life in defined time period"]
[null,{"$f":"SUM(B29)","v":0},"Total number of level 2,3, or 4 babies receiving initial empiric antibiotics in DOL 0-7 admited to your NICU during the defined time period"]
[]
["8",null,"Mortality:"]
["a",{"$f":"IFERROR(B41/B42,0)","v":0},"Percentage of total NICU Mortality (multiply by 100)"]
[null,null,"Total number of NICU patient deaths"]
[null,{"$f":"SUM(B29)","v":0},"Total number of level 2,3, or 4 babies admitted to your NICU during defined time period"]
["b",{"$f":"(B46+B49)/2","v":0},"Percentage of VLBW Total Mortality (multiply by 100)"]
[null,{"$f":"B47+B50","v":0},"Total number of VLBW deaths"]
[null,{"$f":"B48+B51","v":0},"Total number of VLBW neonates admitted to your NICU during defined time period"]
["c",{"$f":"IFERROR(B47/B48,0)","v":0},"Percentage of VLBW Inborn Mortality (multiply by 100)"]
[null,null,"Inborn VLBW patient deaths"]
[null,null,"Total number of VLBW neonates born in your hospital during defined time period"]
["d",{"$f":"IFERROR(B50/B51,0)","v":0},"Percentage of VLBW Outborn Mortality (multiply by 100)"]
[null,null,"Outborn VLBW patient deaths"]
[null,null,"Total number of outborn VLBW neonates transferred into and admitted by center in defined time period"]
[]
["9",{"$f":"IFERROR(B54/B55,0)","v":0},"Mean Ventilator Days (VLBW)"]
[null,null,"Total inborn VLBW patient ventilator days"]
[null,null,"Total number of VLBW patients born in your hospital during defined time period"]
[]
["10",null,"Antenatal Steroid Administration"]
["a",{"$f":"IFERROR(B59/B60,0)","v":0},"Percentage of inborn VLBW neonates receiving antenatal steroids (multiply by 100)"]
[null,null,"Number of neonates receiving steroids prior to delivery in VLBW neonates born in your hospital during defined time period"]
[null,null,"Number of VLBW neonates born in your hospital during defined time period"]
["b",{"$f":"IFERROR(B62/B63,0)","v":0},"Percentage of inborn late preterm neonates receiving antenatal steroids (multiply by 100)"]
[null,null,"Number of neonates receiving steroids prior to delivery in 34-36.6 week delivered neonates born in your hospital during defined time period"]
[null,null,"Total number of 34-36.6 neonates born in your hospital during defined time period"]
[]
["11",null,"VLBW Transfer Data"]
["a",null,"Number of transferred in / outborn VLBW neonates in a defined time period"]
["b",null,"Number of transferred out VLBW neonates in a defined time period"]
[]
["Version - 7.15.19"]

{"sheet":"YTD totals","index":6,"n_rows":29,"n_cols":14,"rows_kept":29,"cut":false,"hidden":false,"merged":[[6,2,6,13],[0,0,0,1],[1,5,1,13],[3,5,3,13],[4,5,4,13],[2,5,2,13],[1,2,1,4],[2,2,2,4],[3,2,3,4],[4,2,4,4]]}
["SETRAC PERINATAL DATA"]
[null,null,"Hospital Name"]
[null,null,"Completed By"]
[null,null,"Email"]
[null,null,"Phone"]
[]
[null,null,"Calendar Year 2019"]
["No.","Item Name","Jan","Feb","Mar","Apr","May","Jun","Jul","Aug","Sep","Oct","Nov","Dec"]
["1a","Length of Stay - VLBW",{"$f":"SUM(January!$B$8)","v":0},{"$f":"SUM(February!$B$8)","v":0},{"$f":"SUM(March!$B$8)","v":0},{"$f":"SUM(April!$B$8)","v":0},{"$f":"SUM(May!$B$8)","v":0},{"$f":"SUM(June!$B$8)","v":0}]
["1b","Length of Stay - Late Preterm Infants (LPT)",{"$f":"SUM(January!$B$11)","v":0},{"$f":"SUM(February!$B$11)","v":0},{"$f":"SUM(March!$B$11)","v":0},{"$f":"SUM(April!$B$11)","v":0},{"$f":"SUM(May!$B$11)","v":0},{"$f":"SUM(June!$B$11)","v":0}]
[2,"Percentage of all NICU babies discharged on ANY breastmilk:",{"$f":"SUM(January!$B$15)","v":0},{"$f":"SUM(February!$B$15)","v":0},{"$f":"SUM(March!$B$15)","v":0},{"$f":"SUM(April!$B$15)","v":0},{"$f":"SUM(May!$B$15)","v":0},{"$f":"SUM(June!$B$15)","v":0}]
[3,"Percentage of VLBW babies discharged on ANY breastmilk:",{"$f":"SUM(January!$B$19)","v":0},{"$f":"SUM(February!$B$19)","v":0},{"$f":"SUM(March!$B$19)","v":0},{"$f":"SUM(April!$B$19)","v":0},{"$f":"SUM(May!$B$19)","v":0},{"$f":"SUM(June!$B$19)","v":0}]
[4,"Percentage of babies admitted to NICU with temp <36.5 degrees (hypothermia):",{"$f":"SUM(January!$B$23)","v":0},{"$f":"SUM(February!$B$23)","v":0},{"$f":"SUM(March!$B$23)","v":0},{"$f":"SUM(April!$B$23)","v":0},{"$f":"SUM(May!$B$23)","v":0},{"$f":"SUM(June!$B$23)","v":0}]
[5,"Percentage of infection reporting ◊ positive neonatal bloodstream infections:",{"$f":"SUM(January!$B$27)","v":0},{"$f":"SUM(February!$B$27)","v":0},{"$f":"SUM(March!$B$27)","v":0},{"$f":"SUM(April!$B$27)","v":0},{"$f":"SUM(May!$B$27)","v":0},{"$f":"SUM(June!$B$27)","v":0}]
[6,"Percentage of admission antibiotics DOL 0-7 – order to drug initiation > 1 hour:",{"$f":"SUM(January!$B$31)","v":0},{"$f":"SUM(February!$B$31)","v":0},{"$f":"SUM(March!$B$31)","v":0},{"$f":"SUM(April!$B$31)","v":0},{"$f":"SUM(May!$B$31)","v":0},{"$f":"SUM(June!$B$31)","v":0}]
[7,"Percentage of number of babies receiving cephalosporins for initial empiric antibiotic therapy in DOL 0-7:",{"$f":"SUM(January!$B$35)","v":0},{"$f":"SUM(February!$B$35)","v":0},{"$f":"SUM(March!$B$35)","v":0},{"$f":"SUM(April!$B$35)","v":0},{"$f":"SUM(May!$B$35)","v":0},{"$f":"SUM(June!$B$35)","v":0}]
["8a","Percentage of total mortality",{"$f":"SUM(January!$B$40)","v":0},{"$f":"SUM(February!$B$40)","v":0},{"$f":"SUM(March!$B$40)","v":0},{"$f":"SUM(April!$B$40)","v":0},{"$f":"SUM(May!$B$40)","v":0},{"$f":"SUM(June!$B$40)","v":0}]
["8b","Percentage of VLBW Total Mortality",{"$f":"SUM(January!$B$43)","v":0},{"$f":"SUM(February!$B$43)","v":0},{"$f":"SUM(March!$B$43)","v":0},{"$f":"SUM(April!$B$43)","v":0},{"$f":"SUM(May!$B$43)","v":0},{"$f":"SUM(June!$B$43)","v":0}]
["8c","Percentage of VLBW Inborn Mortality",{"$f":"SUM(January!$B$46)","v":0},{"$f":"SUM(February!$B$46)","v":0},{"$f":"SUM(March!$B$46)","v":0},{"$f":"SUM(April!$B$46)","v":0},{"$f":"SUM(May!$B$46)","v":0},{"$f":"SUM(June!$B$46)","v":0}]
["8d","Percentage of VLBW Outborn Mortality",{"$f":"SUM(January!$B$49)","v":0},{"$f":"SUM(February!$B$49)","v":0},{"$f":"SUM(March!$B$49)","v":0},{"$f":"SUM(April!$B$49)","v":0},{"$f":"SUM(May!$B$49)","v":0},{"$f":"SUM(June!$B$49)","v":0}]
[9,"Mean Ventilator Days (VLBW)",{"$f":"SUM(January!$B$53)","v":0},{"$f":"SUM(February!$B$53)","v":0},{"$f":"SUM(March!$B$53)","v":0},{"$f":"SUM(April!$B$53)","v":0},{"$f":"SUM(May!$B$53)","v":0},{"$f":"SUM(June!$B$53)","v":0}]
["10a","Percentage of antenatal steroid administration - neonates receiving steroids prior to delivery in VLBW neonates",{"$f":"SUM(January!$B$58)","v":0},{"$f":"SUM(February!$B$58)","v":0},{"$f":"SUM(March!$B$58)","v":0},{"$f":"SUM(April!$B$58)","v":0},{"$f":"SUM(May!$B$58)","v":0},{"$f":"SUM(June!$B$58)","v":0}]
["10b","Percentage of antenatal steroid administration - neonates receiving steroids prior to delivery in 34-36.6 week delivered neonates",{"$f":"SUM(January!$B$61)","v":0},{"$f":"SUM(February!$B$61)","v":0},{"$f":"SUM(March!$B$61)","v":0},{"$f":"SUM(April!$B$61)","v":0},{"$f":"SUM(May!$B$61)","v":0},{"$f":"SUM(June!$B$61)","v":0}]
[]
[]
["11a","Number of transferred in / outborn VLBW neonates in a defined time period",{"$f":"SUM(January!B66)","v":0},{"$f":"SUM(February!B66)","v":0},{"$f":"SUM(March!B66)","v":0},{"$f":"SUM(April!B66)","v":0},{"$f":"SUM(May!B66)","v":0},{"$f":"SUM(June!B66)","v":0}]
["11b","Number of tranferred out VLBW neonates in a defined time period",{"$f":"SUM(January!B67)","v":0},{"$f":"SUM(February!B67)","v":0},{"$f":"SUM(March!B67)","v":0},{"$f":"SUM(April!B67)","v":0},{"$f":"SUM(May!B67)","v":0},{"$f":"SUM(June!B67)","v":0}]
[]
["Version - 7.15.19"]